bitfinex/quotes_SOLUSD_20250330
["timestamp","ask_amount","ask_price","bid_price","bid_amount"]
[1743326277881,81.9,125.94,125.92,0.063]
[1743326280485,81.9,125.94,125.93,6.76]
[1743326280779,0.03,125.95,125.94,0.28432314]
[1743326285370,0.03,125.95,125.94,8.22452314]
[1743326294001,0.03,125.95,125.94,27.15849514]
[1743326301466,81.9,126.0,125.95,18.933972]
[1743326301773,81.9,126.02,125.96,0.28432314]
[1743326302086,81.9,126.02,125.98,0.28432314]
[1743326303386,81.9,126.02,125.99,7.9371]
[1743326304881,81.93,126.02,125.99,7.9371]
[1743326307289,0.03,126.02,126.0,0.28432314]
[1743326307796,0.03,126.02,126.01,14.6758]
[1743326308289,0.03,126.02,126.01,14.96012314]
[1743326308665,0.03,126.02,126.01,15.24444628]
[1743326312093,0.03,126.02,126.01,14.96012314]
[1743326312279,0.03,126.02,126.01,6.74]
[1743326313078,0.03,126.02,126.01,14.6758]
[1743326315291,0.03,126.02,126.01,6.74]
[1743326316194,0.03,126.02,126.01,14.6758]
[1743326317296,0.03,126.02,126.01,6.74]
[1743326317697,0.03,126.02,126.01,14.6758]
[1743326318695,0.03,126.02,126.01,6.74]
[1743326319299,0.03,126.02,126.01,14.6758]
[1743326321093,0.03,126.02,126.01,15.24444628]
[1743326321606,0.03,126.02,126.01,33.89409514]
[1743326328685,0.03,126.02,126.01,0.28432314]
[1743326328884,0.03,126.02,126.01,6.74]
[1743326329195,0.03,126.02,125.99,8.22112314]
[1743326330195,0.03,126.02,126.0,6.74]
[1743326330609,0.03,126.02,125.96,8.0017]
[1743326330784,81.9,126.01,125.97,7.02432314]
[1743326332234,81.9,126.01,125.97,14.96252314]
[1743326335925,89.8359,126.01,125.97,0.28432314]
[1743326336116,95.9819,126.01,125.97,7.02432314]
[1743326336440,81.9,126.0,125.97,7.02432314]
[1743326338696,81.9,126.0,125.97,14.96232314]
[1743326347110,81.9,126.0,125.97,6.74]
[1743326348220,81.9,125.99,125.97,6.74]
[1743326349715,81.9,125.99,125.97,14.6782]
[1743326350805,81.9,125.99,125.98,0.28432314]
[1743326353714,81.9,125.99,125.98,8.22202314]
[1743326353915,0.03,126.0,125.98,8.22202314]
[1743326356731,0.03,126.0,125.99,18.933972]
[1743326358530,0.03,126.0,125.98,8.22202314]
[1743326358531,0.03,126.0,125.98,7.9377]
[1743326358734,0.03,126.0,125.98,14.6577]
[1743326359738,0.03,126.0,125.98,6.72]
[1743326361136,0.03,126.0,125.97,14.6581]
[1743326361839,0.03,126.0,125.97,34.504]
[1743326362032,0.03,126.0,125.98,0.28432314]
[1743326362336,0.03,126.0,125.98,19.21829514]
[1743326364630,0.03,126.0,125.99,8.22142314]
[1743326398556,0.03,126.0,125.99,7.9371]
[1743326399860,0.03,126.0,125.98,7.9377]
[1743326400641,0.03,126.0,125.96,0.063]
[1743326400642,94.50204363,125.99,125.96,0.063]
[1743326401542,94.50204363,125.99,125.96,8.002]
[1743326402537,81.9,125.99,125.96,8.002]
[1743326403759,81.9,125.98,125.96,8.002]
[1743326406255,81.9,125.98,125.96,0.063]
[1743326408348,81.9,125.98,125.96,8.002]
[1743326414456,81.9,125.98,125.96,0.063]
[1743326418467,81.9,125.99,125.96,0.063]
[1743326422675,81.93,125.99,125.96,0.063]
[1743326430089,81.9,125.98,125.96,0.063]
[1743326435781,94.50204363,125.98,125.96,0.063]
[1743326435985,81.9,125.97,125.96,0.063]
[1743326441890,81.9,125.98,125.96,0.063]
[1743326442590,0.03,125.99,125.97,0.14216157]
[1743326442779,0.03,125.99,125.98,25.613972]
[1743326443482,0.03,126.0,125.99,18.933972]
[1743326443892,0.03,126.0,125.99,8.22142314]
[1743326446591,0.03,126.02,126.0,0.28432314]
[1743326448689,0.03,126.02,126.01,8.22012314]
[1743326449392,0.03,126.02,126.01,7.9358]
[1743326450902,0.03,126.02,126.0,8.22082314]
[1743326451087,81.9,126.01,125.98,7.9377]
[1743326451281,81.9,126.01,125.98,14.6177]
[1743326451980,81.9,126.01,125.99,0.28432314]
[1743326452898,0.03,126.02,126.0,7.9365]
[1743326453996,0.03,126.02,126.01,6.68]
[1743326455094,0.03,126.02,126.01,14.6158]
[1743326460902,0.03,126.02,126.01,6.68]
[1743326461803,0.03,126.02,126.01,33.83409514]
[1743326463107,0.03,126.04,126.03,26.868572]
[1743326463307,0.03,126.04,126.03,27.15289514]
[1743326464426,0.0001,126.04,126.03,27.15289514]
[1743326464616,0.0001,126.04,126.03,28.73849514]
[1743326470107,0.0001,126.04,126.03,27.15289514]
[1743326476895,0.0001,126.05,126.04,0.28432314]
[1743326477101,0.0001,126.05,126.04,1.82772314]
[1743326479017,0.0001,126.05,126.04,9.76162314]
[1743326482411,0.0001,126.05,126.04,9.82462314]
[1743326484607,0.0001,126.05,126.04,28.75859514]
[1743326490604,0.0001,126.05,126.04,27.21519514]
[1743326493709,0.0001,126.05,126.04,27.71519514]
[1743326495836,0.0001,126.05,126.04,29.16598173]
[1743326499032,0.0001,126.05,126.04,28.66598173]
[1743326499214,0.0001,126.05,126.04,29.16598173]
[1743326502433,0.0001,126.05,126.04,35.48141745]
[1743326505126,0.0001,126.07,126.06,0.28432314]
[1743326505325,0.0001,126.07,126.06,25.89829514]
[1743326506331,0.0001,126.08,126.07,19.21829514]
[1743326507437,0.03,126.11,126.08,0.28432314]
[1743326507740,0.03,126.11,126.1,0.28432314]
[1743326507944,0.03,126.11,126.1,6.96432314]
[1743326508842,0.03,126.11,126.1,14.89452314]
[1743326518537,0.03,126.11,126.1,14.6102]
[1743326530263,0.03,126.11,126.1,6.68]
[1743326533762,0.03,126.11,126.1,14.6102]
[1743326545171,0.03,126.11,126.1,14.89452314]
[1743326550575,0.03,126.11,126.1,33.82849514]
[1743326550757,0.03,126.11,126.1,15.17884628]
[1743326555479,0.03,126.11,126.1,14.89452314]
[1743326560079,0.03,126.11,126.1,14.6102]
[1743326565782,0.03,126.11,126.1,6.68]
[1743326567778,0.03,126.11,126.1,14.6102]
[1743326582098,0.03,126.11,126.1,6.68]
[1743326582312,81.93,126.11,126.1,6.68]
[1743326583110,94.53204363,126.11,126.1,6.68]
[1743326584185,81.93,126.11,126.1,6.68]
[1743326584486,81.93,126.11,126.1,14.6102]
[1743326588218,94.53204363,126.11,126.1,6.68]
[1743326590519,81.93,126.11,126.1,14.6102]
[1743326591526,0.03,126.11,126.1,14.6102]
[1743326591819,0.03,126.11,126.1,33.82849514]
[1743326608221,0.03,126.12,126.11,0.28432314]
[1743326608823,0.0001,126.12,126.11,0.28432314]
[1743326610754,0.0001,126.12,126.11,8.21382314]
[1743326615054,0.0001,126.12,126.11,8.27682314]
[1743326617651,0.0001,126.12,126.11,27.21079514]
[1743326624756,0.0001,126.12,126.11,8.27682314]
[1743326624963,0.0001,126.12,126.11,26.926472]
[1743326625135,0.0001,126.12,126.11,8.27682314]
[1743326630361,0.0001,126.12,126.11,14.93682314]
[1743326639652,0.0001,126.12,126.11,33.87079514]
[1743326646877,0.03,126.15,126.13,0.28432314]
[1743326647174,0.03,126.15,126.14,7.9276]
[1743326648458,0.03,126.15,126.14,8.21192314]
[1743326648659,0.03,126.15,126.14,27.14589514]
[1743326650773,1.5599,126.18,126.15,0.28432314]
[1743326650974,1.5599,126.18,126.16,6.66]
[1743326651875,1.5599,126.18,126.17,7.9258]
[1743326653282,0.03,126.18,126.17,7.9258]
[1743326668904,12.63204363,126.18,126.16,7.9263]
[1743326669084,12.63204363,126.18,126.17,6.66]
[1743326670078,12.63204363,126.18,126.17,14.5858]
[1743326670478,0.03,126.18,126.17,14.5858]
[1743326685516,0.03,126.18,126.17,6.66]
[1743326685699,12.63204363,126.18,126.17,6.66]
[1743326708919,60.40204363,126.18,126.15,0.063]
[1743326709122,12.60204363,126.17,126.15,0.063]
[1743326709741,12.60204363,126.16,126.15,0.063]
[1743326715145,68.29844363,126.16,126.15,0.063]
[1743326718455,76.24844363,126.16,126.15,0.063]
[1743326718841,100.09844363,126.16,126.15,0.063]
[1743326723940,100.12844363,126.16,126.15,0.063]
[1743326728358,92.17844363,126.16,126.15,0.063]
[1743326732262,110.82809249,126.16,126.15,0.063]
[1743326732669,92.17844363,126.16,126.15,0.063]
[1743326732857,110.82809249,126.16,126.15,0.063]
[1743326733264,118.77809249,126.16,126.15,0.063]
[1743326733467,130.64419249,126.16,126.11,6.723]
[1743326733766,12.60204363,126.12,126.11,0.063]
[1743326733970,60.37204363,126.12,126.11,0.063]
[1743326734874,68.30094363,126.12,126.11,0.063]
[1743326737779,60.37204363,126.12,126.11,0.063]
[1743326737958,142.27204363,126.12,126.11,0.063]
[1743326746687,150.20094363,126.12,126.11,0.063]
[1743326749270,142.27204363,126.12,126.11,0.063]
[1743326755571,129.67,126.12,126.11,0.063]
[1743326755775,142.27204363,126.12,126.11,0.063]
[1743326756495,81.9,126.12,126.11,0.063]
[1743326756674,81.9,126.14,126.12,1.504]
[1743326756880,81.9,126.14,126.12,8.164]
[1743326757084,12.63204363,126.16,126.12,8.164]
[1743326757877,12.63204363,126.16,126.13,7.9283]
[1743326758978,0.03,126.15,126.13,7.9283]
[1743326767330,0.03,126.15,126.14,0.28432314]
[1743326768108,0.03,126.15,126.14,8.21192314]
[1743326770588,0.03,126.15,126.14,27.14589514]
[1743326780922,0.03,126.15,126.14,28.71619514]
[1743326787926,0.03,126.15,126.14,33.521572]
[1743326788110,0.03,126.15,126.14,33.80589514]
[1743326791928,0.03,126.15,126.14,7.9276]
[1743326792115,0.03,126.15,126.14,14.5876]
[1743326793428,0.03,126.15,126.14,14.87192314]
[1743326794226,0.03,126.15,126.14,33.80589514]
[1743326799438,0.03,126.15,126.14,35.44189514]
[1743326799638,0.03,126.16,126.15,0.28432314]
[1743326799936,0.03,126.16,126.15,8.21132314]
[1743326811363,0.03,126.18,126.15,46.96289514]
[1743326814161,0.03,126.18,126.16,0.28432314]
[1743326814345,0.03,126.18,126.15,28.02892314]
[1743326817340,0.03,126.18,126.16,6.66]
[1743326818555,0.03,126.18,126.16,14.586]
[1743326820861,12.63204363,126.18,126.16,6.66]
[1743326821054,0.03,126.18,126.16,14.5864]
[1743326821449,0.03,126.18,126.16,6.66]
[1743326826675,12.63204363,126.18,126.16,6.66]
[1743326826989,19.13524363,126.17,126.15,0.063]
[1743326830692,6.5332,126.17,126.15,0.063]
[1743326832387,54.2532,126.17,126.15,0.063]
[1743326832590,6.5332,126.17,126.15,0.063]
[1743326834691,12.60204363,126.16,126.15,0.063]
[1743326842702,60.32204363,126.16,126.15,0.063]
[1743326843404,60.35204363,126.16,126.15,0.063]
[1743326851821,0.03,126.16,126.15,0.063]
[1743326861194,0.03,126.16,126.15,8.27432314]
[1743326867925,0.03,126.16,126.15,27.20829514]
[1743326881342,0.03,126.16,126.15,7.99]
[1743326881934,0.03,126.16,126.15,0.063]
[1743326887736,0.03,126.16,126.15,6.723]
[1743326889153,12.63204363,126.16,126.15,6.723]
[1743326893755,0.03,126.16,126.15,6.723]
[1743326894328,0.03,126.16,126.15,14.65]
[1743326895238,0.03,126.16,126.15,33.86829514]
[1743326898256,0.03,126.16,126.15,15.21864628]
[1743326902647,0.03,126.16,126.15,14.93432314]
[1743326907846,0.03,126.16,126.15,33.86829514]
[1743326911271,0.03,126.16,126.15,15.21864628]
[1743326912645,0.03,126.16,126.15,14.65]
[1743326915670,0.03,126.16,126.15,0.063]
[1743326915855,0.03,126.16,126.15,6.723]
[1743326916251,0.03,126.16,126.15,25.94129514]
[1743326917276,0.03,126.16,126.15,33.86829514]
[1743326919880,0.03,126.18,126.17,0.28432314]
[1743326922280,0.03,126.18,126.17,8.21012314]
[1743326922671,0.03,126.18,126.17,7.9258]
[1743326924574,0.03,126.18,126.16,7.9264]
[1743326927471,12.63204363,126.18,126.16,6.66]
[1743326928888,12.63204363,126.18,126.16,14.5862]
[1743326935597,0.03,126.18,126.16,14.5862]
[1743326936298,0.03,126.18,126.16,14.6492]
[1743326940004,12.63204363,126.18,126.16,14.6492]
[1743326942903,12.63204363,126.18,126.16,6.723]
[1743326943100,12.60204363,126.17,126.16,6.723]
[1743326944789,12.60204363,126.17,126.16,0.063]
[1743326950403,60.32204363,126.17,126.16,0.063]
[1743326957703,60.35204363,126.18,126.16,0.063]
[1743326959503,12.63204363,126.18,126.16,0.063]
[1743326965423,12.60204363,126.17,126.16,0.063]
[1743326970508,60.32204363,126.17,126.16,0.063]
[1743326975429,68.24784363,126.17,126.16,0.063]
[1743326976626,60.32204363,126.17,126.16,0.063]
[1743326983536,68.27784363,126.17,126.16,0.063]
[1743326986160,60.35204363,126.17,126.16,0.063]
[1743326990137,68.27784363,126.17,126.16,0.063]
[1743326991766,60.35204363,126.17,126.16,0.063]
[1743326997565,68.30104363,126.17,126.16,0.063]
[1743326997749,60.35204363,126.17,126.16,0.063]
[1743327002073,0.03,126.17,126.16,0.063]
[1743327013483,0.03,126.17,126.16,0.34732314]
[1743327013674,0.03,126.17,126.16,19.28129514]
[1743327013876,0.03,126.17,126.16,20.87399514]
[1743327014761,0.03,126.17,126.16,28.80039514]
[1743327015392,0.03,126.18,126.16,170.42719514]
[1743327015557,0.03,126.18,126.17,8.53702314]
[1743327016862,0.03,126.18,126.17,16.46282314]
[1743327019483,0.03,126.18,126.17,151.96282314]
[1743327021286,0.03,126.18,126.17,177.30401999]
[1743327022672,0.03,126.18,126.17,181.17942805]
[1743327022882,0.03,126.18,126.17,174.7722032]
[1743327024290,0.03,126.19,126.18,0.28432314]
[1743327024467,0.03,126.19,126.18,135.78432314]
[1743327025587,0.03,126.19,126.18,154.71829514]
[1743327026888,0.03,126.19,126.18,162.64339514]
[1743327027491,0.0001,126.19,126.18,164.09257205]
[1743327028297,0.0001,126.19,126.18,244.99257205]
[1743327029695,0.0001,126.19,126.18,109.20824891]
[1743327030086,0.0001,126.19,126.18,109.49257205]
[1743327032119,0.0001,126.19,126.18,87.54]
[1743327032313,0.0001,126.19,126.17,7.9255]
[1743327032607,0.0001,126.19,126.18,6.64]
[1743327034649,0.0001,126.19,126.18,14.5651]
[1743327034800,0.0001,126.19,126.18,14.84942314]
[1743327036428,0.0001,126.19,126.18,33.78339514]
[1743327042417,0.0001,126.19,126.18,33.84639514]
[1743327047244,0.0001,126.19,126.18,35.38729514]
[1743327051049,0.0001,126.19,126.18,170.88729514]
[1743327051345,0.0001,126.19,126.18,172.33647205]
[1743327054853,0.0001,126.19,126.18,253.23647205]
[1743327055332,0.0001,126.19,126.18,252.95214891]
[1743327055533,0.0001,126.19,126.18,253.23647205]
[1743327061759,0.03,126.24,126.19,19.21829514]
[1743327061957,0.03,126.24,126.19,237.06735721]
[1743327062258,0.03,126.24,126.21,19.21829514]
[1743327062441,0.03,126.24,126.23,18.933972]
[1743327062642,0.03,126.24,126.23,154.433972]
[1743327063765,0.03,126.24,126.23,143.70632314]
[1743327066462,0.03,126.24,126.23,8.20632314]
[1743327071164,0.03,126.24,126.23,7.922]
[1743327074064,0.03,126.24,126.22,14.5624]
[1743327076248,0.03,126.24,126.22,14.5623]
[1743327076653,0.03,126.24,126.22,6.64]
[1743327077171,12.63204363,126.24,126.22,6.64]
[1743327077862,0.03,126.24,126.22,14.5625]
[1743327080370,0.03,126.24,126.23,0.28432314]
[1743327081773,0.03,126.24,126.23,8.20632314]
[1743327084462,0.03,126.24,126.23,7.922]
[1743327093710,0.03,126.24,126.23,8.20632314]
[1743327093872,0.03,126.24,126.23,27.14029514]
[1743327095796,0.03,126.24,126.23,162.64029514]
[1743327097234,0.03,126.25,126.24,0.28432314]
[1743327097382,0.03,126.25,126.24,20.66678328]
[1743327098178,0.03,126.25,126.24,137.23281128]
[1743327099180,0.03,126.25,126.24,145.15421128]
[1743327099389,12.63204363,126.25,126.24,1.44848814]
[1743327099585,12.63204363,126.25,126.24,1.73281128]
[1743327099783,0.03,126.25,126.24,1.73281128]
[1743327100104,0.03,126.25,126.24,8.20572314]
[1743327105643,0.03,126.25,126.24,8.49004628]
[1743327106133,0.03,126.25,126.24,243.53969514]
[1743327111710,0.0001,126.25,126.24,243.60269514]
[1743327112717,0.0001,126.26,126.25,8.20502314]
[1743327112915,0.0001,126.26,126.25,14.86502314]
[1743327115741,0.0001,126.26,126.25,33.79899514]
[1743327116364,0.0001,126.26,126.25,250.19899514]
[1743327126991,0.0001,126.26,126.25,231.26502314]
[1743327128707,0.0001,126.26,126.25,224.60502314]
[1743327128992,0.0001,126.26,126.25,231.26502314]
[1743327135879,0.0001,126.26,126.25,88.8207]
[1743327136201,12.60214363,126.26,126.25,87.54]
[1743327136489,12.60214363,126.26,126.24,0.063]
[1743327137283,0.0001,126.26,126.24,7.9843]
[1743327137684,0.0001,126.26,126.25,0.063]
[1743327140480,12.60214363,126.26,126.25,0.063]
[1743327148787,0.0001,126.26,126.25,0.063]
[1743327154516,0.0001,126.26,126.25,26.917672]
[1743327157403,0.0001,126.26,126.25,243.317672]
[1743327158515,0.0001,126.26,126.25,243.60199514]
[1743327161928,0.0001,126.28,126.27,0.28432314]
[1743327162101,0.0001,126.28,126.27,25.87829514]
[1743327163616,0.0001,126.28,126.27,33.79779514]
[1743327166197,0.0001,126.28,126.27,250.19779514]
[1743327173832,0.0001,126.28,126.27,250.26079514]
[1743327175709,0.03,126.3,126.29,0.28432314]
[1743327176023,0.03,126.3,126.29,216.68432314]
[1743327177839,0.03,126.3,126.29,224.60252314]
[1743327178244,0.03,126.3,126.29,228.617052]
[1743327178947,0.03,126.3,126.29,224.60252314]
[1743327183617,0.03,126.3,126.29,95.4582]
[1743327183817,12.63204363,126.3,126.29,87.54]
[1743327184718,0.03,126.3,126.29,95.4582]
[1743327185846,0.03,126.3,126.29,95.5212]
[1743327186223,0.0001,126.3,126.29,250.23949514]
[1743327191540,0.0001,126.3,126.29,231.30552314]
[1743327197345,0.0001,126.3,126.29,231.0212]
[1743327197947,0.0001,126.3,126.29,231.30552314]
[1743327210038,0.0001,126.3,126.29,250.23949514]
[1743327212061,0.03,126.32,126.31,19.21829514]
[1743327213760,0.03,126.32,126.31,27.13529514]
[1743327214238,13.93277448,126.35,126.32,0.28432314]
[1743327214455,13.93277448,126.35,126.34,0.28432314]
[1743327215160,13.93277448,126.35,126.34,216.68422314]
[1743327215362,13.93277448,126.35,126.34,224.59932314]
[1743327215860,13.93277448,126.35,126.34,224.315]
[1743327217645,13.93277448,126.35,126.34,216.3999]
[1743327217849,26.53481811,126.35,126.34,216.3999]
[1743327219042,26.53481811,126.35,126.34,80.9]
[1743327219354,13.93277448,126.35,126.34,80.9]
[1743327219751,13.93277448,126.35,126.34,88.8151]
[1743327221769,13.96277448,126.35,126.34,88.8151]
[1743327224844,13.96277448,126.35,126.34,224.315]
[1743327225846,13.96277448,126.35,126.34,216.3999]
[1743327226061,26.56481811,126.35,126.34,216.3999]
[1743327226553,13.96277448,126.35,126.34,216.3999]
[1743327228463,20.50767448,126.35,126.34,216.3999]
[1743327228669,33.10971811,126.35,126.34,216.3999]
[1743327230474,20.50767448,126.35,126.34,216.3999]
[1743327230663,13.96277448,126.35,126.34,80.9]
[1743327230860,13.96277448,126.35,126.34,88.8151]
[1743327236782,13.96277448,126.35,126.34,224.315]
[1743327237281,13.96277448,126.35,126.34,224.59932314]
[1743327238159,13.96277448,126.35,126.34,243.53329514]
[1743327239689,13.96277448,126.35,126.34,224.88364628]
[1743327239988,13.96277448,126.35,126.34,243.53329514]
[1743327241470,13.96277448,126.35,126.34,224.59932314]
[1743327242683,26.56481811,126.35,126.34,224.315]
[1743327244385,13.96277448,126.35,126.34,224.315]
[1743327246585,26.56481811,126.35,126.34,216.3999]
[1743327248382,26.56481811,126.35,126.34,80.9]
[1743327249186,26.56481811,126.35,126.33,135.4999]
[1743327249378,12.60204363,126.34,126.33,135.4999]
[1743327254197,12.60204363,126.34,126.32,150.0962]
[1743327254376,26.56481811,126.35,126.32,150.0962]
[1743327257688,12.60204363,126.34,126.32,150.0962]
[1743327260206,13.96277448,126.35,126.32,150.0962]
[1743327260588,13.96277448,126.35,126.33,0.28432314]
[1743327261410,13.96277448,126.35,126.33,19.21829514]
[1743327262308,13.96277448,126.35,126.34,8.19942314]
[1743327265910,13.96277448,126.35,126.34,224.59932314]
[1743327266807,13.96277448,126.35,126.34,243.53329514]
[1743327270315,13.96277448,126.35,126.34,224.59932314]
[1743327272016,13.96277448,126.35,126.34,231.25932314]
[1743327273812,13.96277448,126.35,126.34,230.975]
[1743327293726,13.96277448,126.35,126.34,223.0599]
[1743327293917,26.56481811,126.35,126.34,223.0599]
[1743327294429,26.56481811,126.35,126.34,230.975]
[1743327296156,26.56481811,126.35,126.34,223.0599]
[1743327300136,26.56481811,126.35,126.34,216.3999]
[1743327300445,34.47931811,126.35,126.33,135.4999]
[1743327300734,12.60204363,126.34,126.33,135.4999]
[1743327304025,12.60204363,126.34,126.31,135.5629]
[1743327305342,12.60204363,126.32,126.31,135.5629]
[1743327305526,12.60204363,126.32,126.31,0.063]
[1743327306448,60.28204363,126.32,126.31,0.063]
[1743327307326,118.60661815,126.32,126.31,0.063]
[1743327307845,60.28204363,126.32,126.31,0.063]
[1743327308826,68.19844363,126.32,126.31,0.063]
[1743327309743,118.60661815,126.32,126.31,0.063]
[1743327309940,118.60661815,126.32,126.29,0.063]
[1743327310253,63.01021815,126.3,126.29,0.063]
[1743327314958,70.92781815,126.3,126.29,0.063]
[1743327315556,118.60781815,126.3,126.29,0.063]
[1743327316123,118.60781815,126.3,126.27,0.063]
[1743327316446,60.28204363,126.28,126.27,0.063]
[1743327317536,20.0,126.26,126.25,0.063]
[1743327317739,32.60204363,126.26,126.25,0.063]
[1743327320657,40.52214363,126.26,126.25,0.063]
[1743327320830,88.20214363,126.26,126.25,0.063]
[1743327324155,80.28204363,126.26,126.25,0.063]
[1743327328538,88.20214363,126.26,126.25,0.063]
[1743327329254,138.61031815,126.26,126.25,0.063]
[1743327333359,88.20214363,126.26,126.25,0.063]
[1743327334062,138.61031815,126.26,126.24,0.063]
[1743327334360,110.69021815,126.25,126.24,0.063]
[1743327335352,110.69021815,126.25,126.2,135.4999]
[1743327335353,12.60204363,126.22,126.2,135.4999]
[1743327335558,12.60204363,126.21,126.19,7.9875]
[1743327335761,12.60204363,126.2,126.19,7.9875]
[1743327339354,12.60204363,126.21,126.19,7.9875]
[1743327343970,12.60204363,126.22,126.19,7.9875]
[1743327344466,12.60204363,126.24,126.19,163.2987]
[1743327344656,12.60204363,126.25,126.19,169.6749]
[1743327344857,12.60204363,126.25,126.19,250.5749]
[1743327345075,12.60204363,126.25,126.2,1.5807]
[1743327346776,12.60204363,126.25,126.21,27.7315]
[1743327347075,12.60204363,126.24,126.21,27.7315]
[1743327347981,12.60204363,126.24,126.21,163.2314]
[1743327352182,12.60204363,126.24,126.22,6.64]
[1743327352480,12.60204363,126.24,126.22,142.1399]
[1743327353786,12.60204363,126.24,126.23,7.922]
[1743327353987,12.63204363,126.25,126.23,7.922]
[1743327370293,0.03,126.25,126.23,7.922]
[1743327373806,0.03,126.25,126.23,7.985]
[1743327374110,0.03,126.25,126.24,20.81659514]
[1743327375303,0.03,126.25,126.24,28.73799514]
[1743327377307,0.03,126.25,126.24,245.13789514]
[1743327377809,0.03,126.3,126.27,0.28432314]
[1743327377985,0.03,126.3,126.28,6.64]
[1743327378594,0.03,126.3,126.28,8.2383]
[1743327379614,0.03,126.3,126.29,7.9182]
[1743327383320,0.03,126.3,126.29,143.3881]
[1743327386014,0.03,126.3,126.29,224.57242314]
[1743327386191,0.03,126.3,126.29,243.50639514]
[1743327389005,26.56481811,126.35,126.31,0.28432314]
[1743327389006,13.96277448,126.35,126.31,0.28432314]
[1743327389311,13.96277448,126.35,126.33,7.9157]
[1743327393619,13.96277448,126.35,126.32,14.5561]
[1743327393794,26.56481811,126.35,126.32,6.64]
[1743327394920,26.56481811,126.35,126.32,150.0261]
[1743327395895,26.56481811,126.35,126.32,142.1098]
[1743327396416,26.56481811,126.35,126.32,150.0261]
[1743327407205,13.96277448,126.35,126.32,150.0261]
[1743327413634,12.60204363,126.33,126.32,135.4698]
[1743327414130,60.28204363,126.33,126.3,6.703]
[1743327414338,12.60204363,126.31,126.3,6.703]
[1743327414515,12.60204363,126.31,126.3,0.063]
[1743327416255,20.51904363,126.31,126.3,0.063]
[1743327416415,74.56834363,126.31,126.3,0.063]
[1743327416738,94.83699249,126.31,126.3,0.063]
[1743327416924,145.24516701,126.31,126.3,0.063]
[1743327417541,47.68,126.27,126.24,0.063]
[1743327417736,12.60204363,126.25,126.24,0.063]
[1743327420830,12.60204363,126.27,126.24,0.063]
[1743327424040,12.60204363,126.27,126.25,7.9207]
[1743327426537,20.0,126.26,126.24,26.63404886]
[1743327427151,20.0,126.26,126.24,162.10384886]
[1743327428457,20.0,126.26,126.24,143.4542]
[1743327429138,12.60204363,126.25,126.24,135.5328]
[1743327430549,60.28204363,126.25,126.24,135.5328]
[1743327430745,12.60204363,126.25,126.24,135.5328]
[1743327432955,12.60204363,126.25,126.24,0.063]
[1743327436266,20.0,126.25,126.24,0.063]
[1743327436448,12.60204363,126.28,126.24,0.063]
[1743327437362,32.60204363,126.27,126.24,0.063]
[1743327437862,32.60204363,126.27,126.24,7.9844]
[1743327438947,32.60204363,126.27,126.24,143.4542]
[1743327445145,32.60204363,126.28,126.24,143.4542]
[1743327446160,12.60204363,126.27,126.24,143.4542]
[1743327446868,12.60204363,126.26,126.24,143.4542]
[1743327448963,12.60204363,126.26,126.24,135.5328]
[1743327449270,12.60204363,126.25,126.24,135.5328]
[1743327450469,50.43817452,126.3,126.24,135.5328]
[1743327450470,12.60204363,126.27,126.24,143.4542]
[1743327452660,20.0,126.27,126.24,143.4542]
[1743327453061,32.60204363,126.27,126.24,143.4542]
[1743327458664,20.0,126.27,126.24,143.4542]
[1743327458876,12.63204363,126.3,126.25,18.64964886]